bitfinex/quotes_ETHUSD_20250422
["timestamp","ask_amount","ask_price","bid_price","bid_amount"]
[1745309423011,8.18497064,1623.2,1622.8,15.62915789]
[1745309423199,12.24051571,1623.3,1622.9,6.16177357]
[1745309423400,18.40111737,1623.3,1622.9,6.16177357]
[1745309423912,12.24051571,1623.3,1622.9,6.16159575]
[1745309424082,6.08,1623.3,1623.0,6.16131838]
[1745309424278,6.08,1623.4,1623.0,6.97877891]
[1745309424507,6.08,1623.4,1623.1,6.16071793]
[1745309424716,6.08,1623.4,1623.2,6.16061643]
[1745309424916,6.08,1623.5,1623.2,6.1604064]
[1745309425085,6.40131783,1623.7,1623.2,13.54255061]
[1745309425279,12.56040055,1623.7,1623.2,12.62640731]
[1745309425477,12.23908272,1623.7,1623.3,6.16026536]
[1745309426017,12.23908272,1623.7,1623.3,6.16007119]
[1745309426319,12.23908272,1623.7,1623.2,6.466]
[1745309426320,6.08,1623.7,1623.4,0.8176]
[1745309426521,6.08,1624.0,1623.8,6.15839389]
[1745309426680,6.15766707,1624.0,1623.6,6.465]
[1745309426885,6.1577768,1624.0,1623.6,12.62391189]
[1745309427086,6.7266,1624.1,1623.8,0.8176]
[1745309427325,6.7266,1624.1,1623.8,6.97582893]
[1745309427883,6.08,1624.1,1623.9,6.15799769]
[1745309428083,6.08,1624.1,1623.9,6.15776551]
[1745309428304,6.08,1624.1,1623.8,6.97580219]
[1745309428989,6.97338333,1624.3,1623.9,6.15789315]
[1745309429384,6.15704468,1624.2,1623.8,3.8176]
[1745309429584,6.15741123,1624.1,1623.7,3.0]
[1745309429802,6.15741123,1624.1,1623.7,9.15858495]
[1745309429998,6.15741123,1624.1,1623.7,9.15850192]
[1745309430324,6.15741123,1624.1,1623.7,15.31700662]
[1745309431019,6.15741123,1624.1,1623.8,6.15834792]
[1745309431338,6.85429293,1624.2,1623.8,6.15834792]
[1745309431783,6.85429293,1624.2,1623.9,0.41343079]
[1745309431984,6.84285528,1624.1,1623.7,9.15850192]
[1745309432188,6.84285528,1624.1,1624.0,0.40692267]
[1745309432432,6.84285528,1624.1,1623.7,9.15850192]
[1745309432737,6.84285528,1624.1,1623.8,6.15838003]
[1745309432882,6.84285528,1624.1,1623.8,6.5653027]
[1745309433083,0.68542929,1624.1,1623.8,6.5653027]
[1745309433309,12.5575078,1624.4,1624.0,6.15748413]
[1745309433520,6.40118755,1624.4,1624.1,6.1572182]
[1745309433686,6.40118755,1624.4,1624.1,6.55258387]
[1745309433888,6.08,1624.4,1624.1,6.55258387]
[1745309434286,6.08,1624.4,1624.1,6.55239629]
[1745309434833,6.08,1624.5,1624.2,9.15664099]
[1745309435392,6.08,1624.5,1624.4,6.15611918]
[1745309435605,6.15611918,1624.4,1624.3,0.39536567]
[1745309435836,6.08,1624.5,1624.1,9.15725487]
[1745309436123,12.23586927,1624.5,1624.2,3.8176]
[1745309436426,6.08,1624.5,1624.2,6.15671679]
[1745309437024,6.08,1624.5,1624.2,7.76985977]
[1745309437223,6.08,1624.5,1624.2,13.92647349]
[1745309437413,6.08,1624.5,1624.3,6.15643589]
[1745309437615,6.08,1624.5,1624.3,6.15625697]
[1745309437931,6.08,1624.5,1624.2,10.76994007]
[1745309438296,6.08,1624.5,1624.3,6.15648524]
[1745309438497,0.00936615,1624.6,1624.4,6.15611918]
[1745309439205,0.00936615,1624.6,1624.4,3.0]
[1745309439400,6.16480666,1624.6,1624.3,6.462]
[1745309441629,6.16484512,1624.6,1624.3,6.462]
[1745309441991,6.16484512,1624.6,1624.4,0.3540032]
[1745309442196,6.16484512,1624.6,1624.3,6.462]
[1745309442501,12.24484512,1624.6,1624.3,6.462]
[1745309442696,18.40053454,1624.6,1624.4,0.3540032]
[1745309442892,12.24484512,1624.6,1624.3,6.462]
[1745309443139,20.24048391,1624.6,1624.4,0.3540032]
[1745309443296,6.1563564,1624.4,1624.1,0.8176]
[1745309443495,6.15783652,1624.0,1623.8,0.8135]
[1745309443723,6.15746846,1624.1,1623.8,3.8135]
[1745309444031,6.15746846,1624.1,1623.8,4.48681036]
[1745309444334,18.39338407,1624.3,1623.9,6.15799881]
[1745309444833,18.39337901,1624.3,1623.9,6.15799881]
[1745309444992,12.23654852,1624.3,1623.9,6.15799881]
[1745309445197,6.15747479,1624.1,1623.8,3.8135]
[1745309445534,6.15747479,1624.1,1623.8,9.97186843]
[1745309445733,6.15707021,1624.2,1623.8,9.97186843]
[1745309445904,6.15707021,1624.2,1623.9,6.15798959]
[1745309446108,7.46685975,1624.2,1623.8,9.97165938]
[1745309446330,7.46685975,1624.2,1623.8,16.12985074]
[1745309446530,6.08,1624.3,1624.0,6.15746875]
[1745309447129,12.23668486,1624.3,1623.9,6.15798499]
[1745309447643,18.39347346,1624.3,1623.9,6.15798499]
[1745309447826,12.23668486,1624.3,1623.9,12.31581306]
[1745309448761,6.08,1624.3,1623.9,6.15782807]
[1745309448929,12.23661815,1624.3,1624.0,6.15761019]
[1745309449125,14.15357207,1624.3,1624.0,6.15761019]
[1745309449326,6.08,1624.3,1624.0,12.31482556]
[1745309449533,6.08,1624.3,1624.0,6.15740751]
[1745309449728,6.08,1624.3,1624.1,6.1571426]
[1745309450037,6.08,1624.3,1624.2,9.97037723]
[1745309450228,0.00936615,1624.6,1624.4,6.15593167]
[1745309450924,6.16473773,1624.6,1624.2,9.97015542]
[1745309451124,6.16473773,1624.6,1624.3,3.0]
[1745309451303,6.1563495,1624.4,1624.1,3.0]
[1745309452037,13.70491922,1624.5,1624.1,9.15708832]
[1745309452234,13.62890865,1624.5,1624.2,6.15687631]
[1745309452437,6.15789178,1624.0,1623.6,6.9724953]
[1745309452819,6.15789178,1624.0,1623.7,3.0]
[1745309453007,12.31580707,1624.0,1623.7,3.0]
[1745309453204,6.15817263,1623.9,1623.6,3.8135]
[1745309453410,6.15789178,1624.0,1623.7,6.15877291]
[1745309453639,6.93402409,1624.1,1623.7,6.1585092]
[1745309453939,6.93402409,1624.1,1623.8,6.15838792]
[1745309454307,6.93402409,1624.1,1623.7,12.31707326]
[1745309454640,6.15742409,1624.1,1623.8,6.15838115]
[1745309454835,6.15696492,1624.2,1623.8,6.15838115]
[1745309455038,12.31416742,1624.2,1623.8,6.15838115]
[1745309455224,12.31416742,1624.2,1623.6,9.97240086]
[1745309455225,6.15779558,1624.0,1623.6,9.97240086]
[1745309455539,6.15779558,1624.0,1623.6,16.13129824]
[1745309455844,6.15779558,1624.0,1623.7,6.15874705]
[1745309456343,6.15741084,1624.1,1623.7,6.15874705]
[1745309456542,13.6157583,1624.1,1623.7,6.15874705]
[1745309456741,6.15861862,1623.8,1623.4,6.15973437]
[1745309457130,6.15843283,1623.8,1623.5,6.15941822]
[1745309457333,6.15843283,1623.8,1623.4,12.31938462]
[1745309457733,6.15843283,1623.8,1623.4,3.0]
[1745309457734,6.15893646,1623.7,1623.4,3.0]
[1745309458240,12.23878427,1623.7,1623.3,13.43974869]
[1745309458444,13.49478253,1623.7,1623.3,7.2796]
[1745309458612,13.49478253,1623.7,1623.3,13.43972584]
[1745309459835,13.49478253,1623.7,1623.3,13.4396465]
[1745309460161,6.08,1623.7,1623.5,6.15922338]
[1745309461860,6.15953431,1623.5,1623.3,7.2796]
[1745309462158,6.15940717,1623.6,1623.4,3.0]
[1745309462356,12.238996,1623.7,1623.4,3.0]
[1745309462964,6.08,1623.7,1623.4,9.15989686]
[1745309463274,12.23880402,1623.7,1623.4,9.15989686]
[1745309463651,14.07854729,1623.7,1623.3,13.43963278]
[1745309463857,14.07854729,1623.7,1623.3,19.59971655]
[1745309464161,14.07854729,1623.7,1623.3,13.43963278]
[1745309464831,7.91974327,1623.7,1623.4,6.15976465]
[1745309465032,6.08,1623.7,1623.4,6.15976465]
[1745309466067,12.23877783,1623.7,1623.4,6.15976465]
[1745309466670,6.08,1623.7,1623.4,6.15976465]
[1745309466967,6.08,1623.7,1623.4,9.15975427]
[1745309467131,6.08,1623.7,1623.5,6.15923207]
[1745309467540,12.23896831,1623.7,1623.4,3.0]
[1745309467743,12.23896831,1623.7,1623.4,9.1597454]
[1745309468068,6.08,1623.7,1623.4,9.1597454]
[1745309468242,1.30078787,1624.1,1623.6,9.6081133]
[1745309468243,6.08,1624.1,1623.6,9.6081133]
[1745309468437,6.08,1624.2,1624.1,9.15725632]
[1745309468786,6.15574653,1624.5,1624.2,6.15672089]
[1745309468787,6.08,1624.4,1624.2,6.15672089]
[1745309469076,6.08,1624.4,1624.3,9.15649818]
[1745309469367,6.08,1624.4,1624.3,3.0]
[1745309469555,6.08,1624.4,1624.2,3.0]
[1745309470338,6.08,1624.4,1624.2,9.15686313]
[1745309470872,6.08,1624.4,1624.2,3.0]
[1745309471163,0.8246,1624.3,1624.0,12.61030887]
[1745309471370,12.23630561,1624.4,1624.1,6.15725411]
[1745309471874,6.08,1624.4,1624.1,6.15725411]
[1745309472073,6.08,1624.4,1624.2,0.2852296]
[1745309472368,6.08,1624.4,1624.2,6.15685954]
[1745309472569,6.08,1624.4,1624.3,0.2852296]
[1745309472932,6.08,1624.4,1624.3,9.44172778]
[1745309473134,6.08,1624.4,1624.3,11.08277741]
[1745309473558,6.08,1624.4,1624.3,9.44172778]
[1745309474761,6.08936615,1624.6,1624.3,9.44172778]
[1745309475070,6.08936615,1624.6,1624.3,9.44151608]
[1745309475379,6.08936615,1624.6,1624.4,6.15600805]
[1745309475582,0.00936615,1624.6,1624.5,6.15574022]
[1745309475737,0.00936615,1624.6,1624.5,6.42849096]
[1745309476049,0.00936615,1624.6,1624.5,0.27275074]
[1745309476867,0.00936615,1624.6,1624.5,6.42849096]
[1745309478482,0.00936615,1624.6,1624.5,10.68692558]
[1745309478653,0.00936615,1624.6,1624.5,11.49902558]
[1745309479455,0.00936615,1624.6,1624.5,15.42415798]
[1745309480392,6.08,1624.8,1624.5,15.42415798]
[1745309480393,6.08,1624.8,1624.7,6.15498245]
[1745309480604,6.9046,1625.1,1624.7,6.15498245]
[1745309480795,8.210392,1625.1,1624.9,6.15422465]
[1745309481007,6.08,1625.1,1624.8,6.15440107]
[1745309481173,6.08,1625.1,1625.0,0.26259414]
[1745309481379,6.08,1625.1,1624.8,6.1543487]
[1745309481680,6.08,1625.1,1625.0,0.26259414]
[1745309481883,6.08,1625.1,1624.8,6.1543487]
[1745309482090,6.08,1625.1,1625.0,0.26259414]
[1745309482256,6.08,1625.1,1624.8,6.1543487]
[1745309482455,6.08,1625.1,1625.0,0.26259414]
[1745309482694,6.08,1625.1,1624.8,6.1543487]
[1745309482893,6.08,1625.1,1625.0,0.26259414]
[1745309483101,6.15483873,1624.8,1624.5,3.8121]
[1745309483307,6.15422487,1624.9,1624.5,9.96769648]
[1745309483601,6.15489392,1624.8,1624.4,6.15586173]
[1745309483962,6.15439508,1624.9,1624.5,6.15557717]
[1745309483963,12.30893733,1624.9,1624.5,6.15557717]
[1745309484161,6.84828459,1624.9,1624.5,6.1554895]
[1745309485108,13.00281064,1624.9,1624.5,6.1554895]
[1745309485297,6.15478072,1624.8,1624.4,6.15588166]
[1745309485501,6.84828459,1624.9,1624.5,6.15560367]
[1745309485997,6.84828459,1624.9,1624.5,6.15549672]
[1745309486415,6.08,1624.8,1624.5,12.31097793]
[1745309486721,6.08,1624.8,1624.5,6.15547969]
[1745309487122,6.08,1624.8,1624.6,0.24024568]
[1745309487726,13.52743993,1624.8,1624.6,0.24024568]
[1745309488689,19.68239756,1624.8,1624.6,0.24024568]
[1745309488884,13.52743993,1624.8,1624.6,0.24024568]
[1745309489119,13.52743993,1624.8,1624.5,6.1557337]
[1745309489302,13.52743993,1624.8,1624.7,0.24024568]
[1745309489510,7.37282846,1624.8,1624.6,6.1553354]
[1745309489822,6.08,1624.8,1624.7,0.24024568]
[1745309490217,6.08,1624.8,1624.6,6.15524705]
[1745309490428,6.08,1624.8,1624.7,0.24024568]
[1745309491526,6.08,1624.8,1624.7,3.68404338]
[1745309491822,6.08,1624.8,1624.7,1.22417429]
[1745309492025,6.08,1624.8,1624.7,0.24024568]
[1745309492206,6.15441657,1624.9,1624.7,0.24024568]
[1745309492930,13.01839706,1625.0,1624.7,0.24024568]
[1745309493231,6.15411232,1625.0,1624.7,3.24024568]
[1745309493520,0.7799,1625.3,1624.7,9.39491023]
[1745309493521,6.15362872,1625.1,1624.7,9.39491023]
[1745309493683,6.15362872,1625.1,1624.7,16.00335565]
[1745309494081,6.15390791,1625.0,1624.7,3.24024568]
[1745309494588,0.32102397,1624.9,1624.7,3.24024568]
[1745309494819,0.32102397,1624.9,1624.7,9.39518753]
[1745309496088,0.32102397,1624.9,1624.7,9.39506104]
[1745309496619,0.32102397,1624.9,1624.8,6.15460364]
[1745309497007,0.32102397,1624.9,1624.8,6.39484932]
[1745309497912,0.32102397,1624.9,1624.8,7.94981346]
[1745309498112,6.15310166,1625.2,1624.9,6.15414445]
[1745309498429,0.32100402,1625.1,1625.0,0.23991209]
[1745309499742,6.08,1625.2,1625.0,0.23991209]
[1745309501000,6.8599,1625.3,1625.0,6.39356142]
[1745309501503,6.15327939,1625.2,1625.0,0.23991209]
[1745309501704,6.15346747,1625.1,1625.0,0.23991209]
[1745309502229,8.16114021,1625.3,1624.7,4.23239557]
[1745309502428,6.15404106,1625.0,1624.7,4.23239557]
[1745309502816,12.23404106,1625.0,1624.7,3.0]
[1745309503018,6.15490074,1624.8,1624.5,0.765]
[1745309503223,8.6688729,1625.0,1624.3,4.2087977]
[1745309503538,6.15595483,1624.5,1624.3,3.765]
[1745309503747,6.15595483,1624.5,1624.2,6.91093151]
[1745309503953,6.15595483,1624.5,1624.1,10.36583364]
[1745309503954,6.15653032,1624.3,1624.1,7.206]
[1745309504256,6.15636275,1624.4,1624.1,7.206]
[1745309504554,12.23593639,1624.5,1624.1,13.36313393]
[1745309504753,6.15635062,1624.4,1624.0,6.15754948]
[1745309504942,6.15702141,1624.2,1623.9,7.206]
[1745309505160,12.23702141,1624.2,1623.9,0.765]
[1745309505473,12.23702141,1624.2,1623.8,12.59918425]
[1745309505769,18.39418331,1624.2,1623.8,13.06914778]
[1745309505952,6.15783447,1624.0,1623.7,20.289]
[1745309506121,6.15740289,1624.1,1623.7,20.289]
[1745309506322,6.15749763,1624.1,1623.7,26.44763003]
[1745309506560,6.15689245,1624.2,1623.8,6.15816563]
[1745309507083,6.15765979,1624.0,1623.7,20.289]
[1745309507640,6.15618808,1624.4,1624.0,6.15742711]
[1745309507963,6.15618808,1624.4,1624.0,6.15735687]
[1745309508366,6.8301,1624.5,1624.1,6.15695614]
[1745309508740,12.98585155,1624.5,1624.1,9.15702077]
[1745309510053,19.14194118,1624.5,1624.1,9.15702077]
[1745309510273,12.98585155,1624.5,1624.1,15.31408937]
[1745309510495,12.98585155,1624.5,1624.1,9.15702077]
[1745309510695,12.98585155,1624.5,1624.1,15.31406276]
[1745309510896,12.98585155,1624.5,1624.2,6.1568298]
[1745309511096,6.08,1624.5,1624.4,6.15611918]
[1745309511283,6.8301,1624.7,1624.4,6.15588798]
[1745309512072,6.08,1624.7,1624.5,6.15571427]
[1745309512494,6.08,1624.7,1624.6,6.15536131]
[1745309513408,6.08,1624.9,1624.7,6.15486564]
[1745309513625,6.08,1625.0,1624.7,6.15486564]
[1745309513998,6.08,1625.0,1624.6,7.38645665]
[1745309513999,12.23388729,1625.0,1624.6,7.38645665]
[1745309514198,12.23388729,1625.0,1624.6,6.15536131]
[1745309515226,12.23388729,1625.0,1624.6,6.15515536]
[1745309515717,18.38806196,1625.0,1624.6,6.15515536]
[1745309516023,12.23388729,1625.0,1624.6,6.15515536]
[1745309516576,12.23388729,1625.0,1624.4,7.207]
[1745309516577,0.7838,1624.9,1624.4,7.207]
[1745309516794,12.30968291,1624.8,1624.4,13.36293077]
[1745309517081,12.30965555,1624.8,1624.5,0.20767847]
[1745309517389,8.16156693,1624.9,1624.5,6.36339772]
[1745309517574,8.16156693,1624.9,1624.5,12.51888948]
[1745309517779,8.16156693,1624.9,1624.5,6.36317023]
[1745309518187,6.15461373,1624.8,1624.5,6.36317023]
[1745309518390,8.16156693,1624.9,1624.5,6.36317023]
[1745309518594,6.89615669,1624.8,1624.5,6.36317023]
[1745309518790,13.05080063,1624.8,1624.5,0.20767847]
[1745309518991,13.05080063,1624.8,1624.5,6.3633778]
[1745309519581,13.05080063,1624.8,1624.5,0.20767847]
[1745309519811,6.08,1624.8,1624.5,3.20767847]
[1745309520016,6.08,1624.8,1624.5,9.36318585]
[1745309520522,6.08,1624.8,1624.6,6.15514547]
[1745309520723,6.08,1624.8,1624.6,6.1551252]
[1745309520926,6.08,1624.8,1624.7,0.20301819]
[1745309522084,6.08,1624.8,1624.7,6.35800064]
[1745309522685,6.08,1624.8,1624.7,0.20301819]
[1745309523086,6.08,1624.8,1624.5,9.15548023]
[1745309523319,6.08,1624.8,1624.7,0.20301819]
[1745309523519,6.08,1624.8,1624.5,9.15548023]
[1745309523720,6.08,1624.8,1624.7,6.35800064]
[1745309523959,6.08,1624.8,1624.7,6.15498245]
[1745309524124,6.08,1624.8,1624.7,6.35800064]
[1745309524712,12.23397126,1625.0,1624.7,6.35800064]
[1745309524886,6.08,1625.0,1624.7,6.35780926]
[1745309525289,6.08,1625.0,1624.7,7.95341869]
[1745309525727,6.08,1625.0,1624.8,6.15444562]
[1745309526316,6.08,1625.0,1624.9,0.20301819]
[1745309526716,6.08,1625.0,1624.8,6.15444562]
[1745309526889,6.08,1625.0,1624.9,0.20301819]
[1745309527316,6.08,1625.0,1624.8,6.1544123]
[1745309527501,6.08,1625.0,1624.9,0.20301819]
[1745309527836,6.08,1625.0,1624.8,6.1544123]
[1745309528047,6.08,1625.0,1624.9,0.20301819]
[1745309528245,13.56767902,1625.0,1624.9,0.20301819]
[1745309528419,6.15444082,1624.9,1624.6,3.0]
[1745309528805,12.30893086,1624.9,1624.7,0.20301819]
[1745309529015,6.15460364,1624.8,1624.7,0.20301819]
[1745309529439,6.15460364,1624.8,1624.5,9.15572214]
[1745309529634,6.15444082,1624.9,1624.7,0.20301819]
[1745309529848,14.28119151,1624.9,1624.5,9.15550906]
[1745309530001,1.97222609,1624.9,1624.4,4.2715977]
[1745309530202,6.15515898,1624.7,1624.4,0.8278]
[1745309530518,6.15515898,1624.7,1624.3,16.50084419]
[1745309530519,18.38974067,1624.8,1624.3,16.50059463]
[1745309530708,12.23477541,1624.8,1624.4,6.15585769]
[1745309531342,12.23477541,1624.8,1624.4,12.31171856]
[1745309531541,12.23477541,1624.8,1624.4,6.15585769]
[1745309531740,18.38970792,1624.8,1624.4,6.15585769]
[1745309532046,6.15510363,1624.7,1624.5,0.20301819]
[1745309532543,6.15510363,1624.7,1624.3,16.50058871]
[1745309532743,6.15510363,1624.7,1624.6,0.20401677]
[1745309532943,6.15510363,1624.7,1624.3,16.50058871]
[1745309533140,6.15510363,1624.7,1624.6,0.20401677]
[1745309533340,8.18559913,1624.7,1624.3,16.50058871]
[1745309533522,8.18559913,1624.7,1624.6,0.20401677]
[1745309534021,8.18559913,1624.7,1624.4,6.1561169]
[1745309534340,6.15510363,1624.7,1624.6,0.20512626]
[1745309534641,12.23484135,1624.8,1624.3,16.50058871]
[1745309534642,6.08,1624.8,1624.5,9.66092907]
[1745309534825,6.08,1624.8,1624.6,6.36059478]
[1745309535749,6.08,1624.8,1624.6,0.20534818]
[1745309536353,6.08,1624.9,1624.7,6.1548698]
[1745309536658,12.99461935,1625.1,1624.8,0.61548698]
[1745309536812,6.08,1625.1,1624.8,0.9568715]
[1745309537142,12.23359327,1625.1,1624.8,0.9568715]
[1745309537361,6.08,1625.1,1624.9,6.15394893]
[1745309537558,6.08,1625.2,1625.0,6.1535418]
[1745309537744,6.08,1625.2,1624.9,9.59780447]
[1745309537916,6.08,1625.2,1625.1,0.20390583]
[1745309538109,0.32096741,1625.3,1625.1,9.90559579]
[1745309538312,0.32096741,1625.3,1625.2,6.15308885]
[1745309538611,6.08,1625.5,1625.3,6.15247288]
[1745309539150,6.15131334,1625.7,1625.4,0.20035641]
[1745309539340,0.32083925,1626.0,1625.8,0.7523]
[1745309539520,0.32083925,1626.0,1625.8,4.1960977]
[1745309539724,0.761,1626.2,1625.9,6.34713729]
[1745309539910,0.761,1626.2,1625.9,9.3469143]
[1745309540107,6.14854928,1626.4,1626.0,6.21139002]
[1745309540511,6.90932401,1626.5,1626.1,10.08991552]
[1745309540727,6.90932401,1626.5,1626.1,3.94045802]
[1745309540921,6.14876956,1626.4,1626.1,3.18815802]
[1745309541124,6.14930512,1626.2,1626.1,0.18815802]
[1745309541326,6.14906429,1626.3,1626.1,0.18815802]
[1745309541956,12.2983603,1626.3,1626.1,0.18815802]
[1745309542322,6.14933303,1626.2,1625.9,10.1833]
[1745309543266,6.15025831,1626.0,1625.8,4.16340747]
[1745309543554,6.14983042,1626.1,1625.8,3.71960977]
[1745309544550,6.14983042,1626.1,1625.8,3.0]
[1745309544744,6.92133042,1626.1,1625.8,3.0]
[1745309544921,6.15006893,1626.0,1625.8,3.0]
[1745309545115,12.30047825,1626.0,1625.8,3.0]
[1745309545358,12.3004922,1626.0,1625.7,3.7523]
[1745309545521,6.15006893,1626.0,1625.7,3.7523]
[1745309546225,6.1511964,1625.7,1625.5,0.8076]
[1745309546427,6.15098231,1625.8,1625.5,7.2366]
[1745309546762,13.53750709,1626.0,1625.5,17.36770532]
[1745309546945,13.53750709,1626.0,1625.6,0.06150949]
[1745309547150,6.15044585,1625.9,1625.6,6.39601944]
[1745309547964,6.08,1626.0,1625.8,6.15064933]
[1745309548162,6.08,1626.0,1625.8,0.8076]
[1745309548529,6.08,1626.0,1625.9,0.18294953]
[1745309549240,6.08,1626.0,1625.8,9.95833338]
[1745309549449,6.08,1626.0,1625.9,0.18294953]
[1745309550265,6.08,1626.0,1625.8,9.95816989]
[1745309550475,6.08,1626.0,1625.9,0.18294953]
[1745309550686,6.08,1626.0,1625.9,6.33338928]
[1745309550843,12.22947596,1626.2,1625.9,6.15043975]
[1745309551042,12.22947596,1626.2,1625.9,0.18294953]
[1745309551440,18.37907443,1626.2,1625.8,9.95816568]
[1745309551628,6.14983954,1626.1,1626.0,0.18294953]
[1745309551964,6.14983954,1626.1,1625.8,3.0]
[1745309552148,6.14983954,1626.1,1626.0,0.17652253]
[1745309552356,6.08,1626.2,1625.9,6.15028841]
[1745309552568,6.14968329,1626.1,1626.0,0.17652253]
[1745309553063,6.15020935,1626.0,1625.7,3.8076]
[1745309553465,6.1515748,1625.6,1625.2,0.8076]
[1745309553627,6.15221696,1625.5,1625.2,7.2356]
[1745309553827,6.15327627,1625.2,1625.0,1.25874652]
[1745309554028,6.15325323,1625.2,1624.8,7.2356]
[1745309554241,6.15325323,1625.2,1624.8,16.75810007]
[1745309554466,6.15325323,1625.2,1624.9,6.15422259]
[1745309554678,6.15294223,1625.3,1624.9,6.15422259]
[1745309554847,6.15272554,1625.3,1624.9,6.21575705]
[1745309555170,6.92407918,1625.4,1625.0,6.15362214]
[1745309555374,6.15214695,1625.5,1625.0,6.7689798]
[1745309555676,6.15214695,1625.5,1625.1,6.96076814]
[1745309556275,6.15234094,1625.4,1625.1,6.96076814]
[1745309556560,6.15234094,1625.4,1625.1,0.8076]
[1745309557127,6.1529776,1625.3,1625.0,0.45050137]
[1745309557323,6.1529776,1625.3,1624.9,6.96166997]
[1745309557836,6.1529776,1625.3,1624.9,6.96160129]
[1745309558040,6.1529776,1625.3,1624.9,9.3627924]
[1745309558487,6.15195324,1625.5,1624.9,3.20879111]
[1745309558650,6.15303283,1625.3,1624.9,6.96177325]
[1745309559007,6.1528901,1625.3,1624.9,6.96159249]
[1745309559293,6.1528901,1625.3,1624.9,13.11557389]
[1745309559473,6.1528901,1625.3,1624.9,6.9615814]
[1745309559782,12.2328901,1625.3,1624.9,6.9615814]
[1745309560087,6.08,1625.3,1624.9,7.41544371]
[1745309560253,6.08,1625.3,1625.1,6.15334167]
[1745309560768,6.08,1625.3,1625.2,6.15308885]
[1745309561544,6.08,1625.3,1625.2,14.02215236]
[1745309561767,6.08,1625.7,1625.2,7.86906351]
[1745309561966,19.21119393,1625.8,1625.4,6.15215228]
[1745309562585,13.06002484,1625.8,1625.5,0.14744526]
[1745309564180,6.08,1625.8,1625.5,6.29922321]
[1745309564483,12.2306133,1625.9,1625.5,7.06662321]
[1745309564782,12.2306133,1625.9,1625.5,8.45964739]
[1745309564979,12.2306133,1625.9,1625.5,8.45960444]
[1745309565346,6.15093407,1625.8,1625.5,8.74759109]
[1745309565544,6.15093407,1625.8,1625.5,7.3545496]
[1745309565840,6.08,1625.9,1625.5,0.91484526]
[1745309566078,6.15098763,1625.8,1625.5,0.91484526]
[1745309566868,6.1515748,1625.6,1625.5,0.14744526]
[1745309567365,6.1515748,1625.6,1625.3,0.7674]
[1745309567559,6.1515748,1625.6,1625.5,0.14744526]
[1745309567885,7.45856277,1625.6,1625.5,0.14744526]
[1745309568177,7.45856277,1625.6,1625.3,0.7674]
[1745309568344,7.45856277,1625.6,1625.5,0.14744526]
[1745309568550,7.38698797,1625.6,1625.1,0.7674]
[1745309568749,7.38698797,1625.6,1625.5,0.14744526]
[1745309569045,6.15282937,1625.3,1625.0,9.59353448]
[1745309569252,6.15270914,1625.4,1625.0,9.59353448]
[1745309569681,6.15268259,1625.4,1625.0,9.59353448]
[1745309569883,6.15261121,1625.4,1625.0,9.59353448]
[1745309570179,6.15261121,1625.4,1625.0,3.43970434]
[1745309570557,6.15411438,1625.0,1624.8,9.85770434]
[1745309570763,6.15411438,1625.0,1624.8,6.418]
[1745309571151,6.15370386,1625.1,1624.8,6.418]
[1745309571568,12.30750394,1625.1,1624.8,6.418]
[1745309571773,6.15370386,1625.1,1624.8,6.418]
[1745309572069,6.15387111,1625.0,1624.8,6.418]
[1745309572399,6.76904587,1625.1,1624.8,6.418]
[1745309572901,6.15390195,1625.0,1624.8,6.418]
[1745309573385,6.08,1625.0,1624.7,21.0584]
[1745309573583,12.23400452,1625.0,1624.7,6.9223502]
[1745309573887,12.23400452,1625.0,1624.7,9.92236508]
[1745309573888,12.23392684,1625.0,1624.7,9.92236508]
[1745309574083,12.23392684,1625.0,1624.7,3.7674]
[1745309574288,6.15448169,1624.9,1624.6,3.0]
[1745309574654,6.15448169,1624.9,1624.5,9.59524547]
[1745309574983,14.90123644,1625.0,1624.5,9.59524547]
[1745309574984,14.13431314,1625.0,1624.6,6.97837122]
[1745309575286,14.13431314,1625.0,1624.6,6.97836021]
[1745309575898,6.08,1625.0,1624.8,6.15455937]
[1745309576255,12.2339104,1625.0,1624.7,9.59444054]
[1745309577009,12.2339104,1625.0,1624.8,0.15243543]
[1745309577209,6.08,1625.0,1624.8,0.15243543]
[1745309579995,6.08,1625.0,1624.9,0.8232]
[1745309580194,12.23309324,1625.2,1624.9,0.8232]
[1745309580524,20.22506607,1625.2,1625.0,0.15243543]
[1745309580690,14.07168089,1625.2,1625.0,0.15243543]
[1745309580885,6.08,1625.2,1625.0,0.15243543]
[1745309581196,6.08,1625.3,1625.1,3.43970434]
[1745309581576,6.08,1625.3,1625.2,0.15864027]
[1745309581900,6.08,1625.3,1625.1,3.43970434]
[1745309582103,6.8371,1626.0,1625.6,6.1514599]
[1745309582277,6.8371,1626.0,1625.6,9.65251822]
[1745309582478,6.08,1626.0,1625.7,6.30755041]
[1745309582786,6.08,1626.1,1625.8,9.59025154]
[1745309583106,13.52835393,1626.1,1625.9,0.15332174]
[1745309583294,7.37866127,1626.1,1625.9,0.15332174]
[1745309583501,7.37866127,1626.1,1625.8,6.15062799]
[1745309583699,13.52836492,1626.1,1626.0,0.15332174]
[1745309583880,13.52836492,1626.1,1625.8,6.15062799]
[1745309584080,7.37866127,1626.1,1626.0,0.15332174]
[1745309584286,6.08,1626.1,1625.8,6.21211205]
[1745309584605,6.8371,1626.2,1625.8,6.21206453]
[1745309584916,6.8371,1626.2,1625.9,6.30357981]
[1745309585116,6.8371,1626.2,1625.9,0.15332174]
[1745309585413,6.8371,1626.2,1626.0,6.1500489]
[1745309585577,6.8371,1626.2,1626.1,0.15332174]
[1745309585783,12.98640512,1626.2,1625.8,6.91619284]
[1745309586114,12.98640512,1626.2,1625.9,6.30372712]
[1745309586293,6.08,1626.3,1626.0,6.21123401]
[1745309586493,6.08,1626.3,1626.2,6.14930512]
[1745309586886,6.08,1626.3,1626.2,0.1359332]
[1745309587317,6.08,1626.3,1626.2,6.28523832]
[1745309587495,6.08,1626.3,1626.2,7.94924844]
[1745309587695,6.08,1626.3,1626.2,6.28523832]
[1745309587907,6.08,1626.7,1626.4,6.14850734]
[1745309588110,12.22730744,1626.8,1626.4,6.14850734]
[1745309588319,12.22730744,1626.8,1626.5,0.13493709]
[1745309589341,12.22712536,1626.8,1626.5,6.28310484]
[1745309589616,12.22712536,1626.8,1626.5,0.13493709]
[1745309592049,6.08,1626.8,1626.5,6.28310422]
[1745309592254,12.22710527,1626.8,1626.5,6.28310422]
[1745309592568,12.22710527,1626.8,1626.5,0.13493709]